bitfinex/quotes_BTCUSD_20230114
["timestamp","ask_amount","ask_price","bid_price","bid_amount"]
[1673666804479,0.799521,20887.0,20886.0,0.01177259]
[1673666804983,0.94391354,20887.0,20886.0,0.01177259]
[1673666805228,0.999521,20887.0,20886.0,0.01177259]
[1673666805727,1.47672269,20887.0,20886.0,0.01177259]
[1673666806254,0.999521,20887.0,20886.0,0.01177259]
[1673666808475,1.04728109,20887.0,20886.0,0.01177259]
[1673666810224,1.02486286,20887.0,20886.0,0.01177259]
[1673666810469,0.97710277,20887.0,20886.0,0.01177259]
[1673666810718,0.799521,20887.0,20886.0,0.01177259]
[1673666810974,0.6740553,20888.0,20886.0,0.16338372]
[1673666811218,0.6740553,20888.0,20886.0,0.01177259]
[1673666811470,0.320755,20887.0,20886.0,0.01177259]
[1673666811951,0.6740743,20888.0,20886.0,0.01177259]
[1673666812238,1.03508923,20887.0,20886.0,0.01177259]
[1673666812741,0.856581,20887.0,20886.0,0.01177259]
[1673666812995,1.056581,20887.0,20886.0,0.01177259]
[1673666813243,0.856581,20887.0,20886.0,0.01177259]
[1673666814963,1.05365147,20887.0,20886.0,0.01177259]
[1673666815451,0.856581,20887.0,20886.0,0.01177259]
[1673666815706,1.056581,20887.0,20886.0,0.01177259]
[1673666815957,0.856581,20887.0,20886.0,0.01177259]
[1673666816209,0.99096106,20887.0,20886.0,0.01177259]
[1673666816959,0.478766,20887.0,20886.0,0.01177259]
[1673666817457,0.799521,20887.0,20886.0,0.01177259]
[1673666817707,0.478766,20887.0,20886.0,0.17978982]
[1673666817952,0.478756,20888.0,20886.0,0.17978982]
[1673666818204,0.47873,20889.0,20886.0,0.17978982]
[1673666818452,0.47873,20889.0,20886.0,0.01177259]
[1673666818453,0.05706,20887.0,20886.0,0.01177259]
[1673666818715,0.856581,20887.0,20886.0,0.01168775]
[1673666819798,1.056581,20887.0,20886.0,0.01146857]
[1673666820280,0.856581,20887.0,20886.0,0.01146857]
[1673666821007,1.056581,20887.0,20886.0,0.01146857]
[1673666821516,1.80306379,20887.0,20886.0,0.01146857]
[1673666821777,1.53378269,20887.0,20886.0,0.01146857]
[1673666822549,1.53378269,20887.0,20886.0,6.857e-05]
[1673666822806,0.2,20886.0,20884.0,0.01156228]
[1673666823055,1.736277,20885.0,20884.0,0.01156228]
[1673666823328,2.21347869,20885.0,20884.0,0.01156228]
[1673666823591,6e-05,20884.0,20883.0,0.01177259]
[1673666823813,1.57993169,20884.0,20879.0,0.01177259]
[1673666824086,1.57993169,20884.0,20879.0,0.12343144]
[1673666824087,0.05706,20880.0,20879.0,0.12343144]
[1673666824333,0.320755,20880.0,20879.0,0.12343144]
[1673666824584,0.799682,20880.0,20879.0,0.12343144]
[1673666825342,0.578768,20880.0,20879.0,0.17446511]
[1673666825599,0.478905,20881.0,20879.0,0.01177259]
[1673666825885,0.478905,20881.0,20879.0,0.19337065]
[1673666826113,0.478905,20881.0,20880.0,0.12146356]
[1673666826355,0.478812,20885.0,20879.0,0.01177259]
[1673666826599,0.478812,20885.0,20880.0,0.113726]
[1673666826600,0.47884,20884.0,20880.0,0.113726]
[1673666826855,0.47884,20884.0,20879.0,0.01177259]
[1673666827231,0.66106334,20885.0,20879.0,0.3544142]
[1673666827413,0.19072595,20885.0,20880.0,0.11372]
[1673666827643,0.63362582,20886.0,20880.0,0.957831]
[1673666827901,0.82435177,20886.0,20881.0,0.113713]
[1673666828158,0.16730973,20883.0,20880.0,0.53549766]
[1673666828411,0.35803568,20883.0,20880.0,0.17869482]
[1673666828906,0.16730973,20883.0,20880.0,0.17869482]
[1673666829163,0.17267651,20882.0,20880.0,0.17869482]
[1673666830135,0.66958195,20884.0,20880.0,0.17869482]
[1673666830377,0.62652663,20884.0,20880.0,0.32133643]
[1673666830613,0.62652663,20884.0,20881.0,0.34264161]
[1673666830865,0.62652663,20884.0,20880.0,0.53549766]
[1673666831359,0.14767063,20884.0,20881.0,0.25395445]
[1673666831612,0.47876,20888.0,20882.0,0.35680284]
[1673666831864,0.66149504,20889.0,20883.0,0.73519061]
[1673666832110,0.18075547,20887.0,20885.0,0.14264161]
[1673666832370,0.18075547,20887.0,20885.0,0.35680284]
[1673666832617,0.18075547,20887.0,20886.0,0.14264161]
[1673666833427,0.18075547,20887.0,20885.0,0.35680284]
[1673666833683,0.18075547,20887.0,20886.0,0.14264161]
[1673666833919,0.478743,20889.0,20886.0,0.14264161]
[1673666834168,0.478677,20891.0,20886.0,0.35680284]
[1673666834421,0.478653,20892.0,20885.0,1.32156626]
[1673666834422,0.66800432,20892.0,20888.0,0.35680284]
[1673666835157,0.14530691,20890.0,20888.0,0.14264161]
[1673666835654,0.49823406,20891.0,20888.0,0.14264161]
[1673666835901,0.66905878,20891.0,20888.0,0.14264161]
[1673666836646,0.49823406,20891.0,20888.0,0.14264161]
[1673666836890,0.49823406,20891.0,20889.0,0.15880179]
[1673666837381,0.01954306,20891.0,20889.0,0.15880179]
[1673666839406,0.16206631,20891.0,20889.0,0.15880179]
[1673666839626,0.64074231,20891.0,20889.0,0.15880179]
[1673666839877,0.01954306,20891.0,20889.0,0.15880179]
[1673666840131,0.01954306,20891.0,20889.0,0.14264161]
[1673666840375,0.01954306,20891.0,20890.0,0.5007476]
[1673666840638,0.00938195,20894.0,20891.0,0.2]
[1673666840887,0.00938195,20894.0,20891.0,0.55754203]
[1673666841116,0.00938195,20894.0,20892.0,0.113624]
[1673666841325,0.00938195,20894.0,20891.0,1.03621103]
[1673666841574,0.00938195,20894.0,20892.0,0.113623]
[1673666841817,0.00938195,20894.0,20893.0,0.678629]
[1673666842050,0.00938195,20894.0,20893.0,0.93526281]
[1673666842536,0.00938195,20894.0,20893.0,0.792246]
[1673666842792,0.00938195,20894.0,20893.0,0.93526281]
[1673666843050,0.00938195,20894.0,20893.0,0.4103681]
[1673666843313,0.00938195,20894.0,20893.0,0.26735129]
[1673666844070,0.00938195,20894.0,20893.0,0.15373429]
[1673666844297,0.00938195,20894.0,20893.0,0.46735029]
[1673666844508,0.00938195,20894.0,20893.0,0.94597929]
[1673666845074,0.00938195,20894.0,20893.0,0.9739005]
[1673666845551,0.00938195,20894.0,20893.0,0.7739005]
[1673666846045,0.00938195,20894.0,20893.0,0.2952715]
[1673666846279,0.00938195,20894.0,20893.0,0.29517513]
[1673666848633,0.00938195,20894.0,20893.0,0.1816555]
[1673666848908,0.00938195,20894.0,20891.0,0.764]
[1673666849154,0.2001079,20894.0,20892.0,0.18404658]
[1673666849427,0.18176565,20894.0,20892.0,0.18404658]
[1673666850002,0.18176565,20894.0,20890.0,0.478685]
[1673666850211,0.3724916,20894.0,20891.0,0.18344064]
[1673666850450,0.18176565,20894.0,20891.0,0.18344064]
[1673666851499,0.23432268,20893.0,20888.0,0.7768]
[1673666851749,0.23432268,20893.0,20889.0,0.10360428]
[1673666851750,0.51148795,20892.0,20889.0,0.10360428]
[1673666851998,0.17726268,20893.0,20890.0,0.14585204]
[1673666852247,0.17726268,20893.0,20891.0,0.16896847]
[1673666853772,0.17726268,20893.0,20888.0,0.16611577]
[1673666854031,0.19072595,20892.0,20890.0,0.13008406]
[1673666854281,0.65589268,20893.0,20890.0,0.13008406]
[1673666855032,0.15901456,20892.0,20887.0,0.845845]
[1673666855307,0.19072595,20891.0,20888.0,0.1551496]
[1673666855810,0.66940095,20891.0,20886.0,0.8093]
[1673666856074,0.51148795,20890.0,20887.0,0.14965348]
[1673666856338,0.478675,20891.0,20887.0,0.14965348]
[1673666856620,0.66940095,20891.0,20887.0,0.14965348]
[1673666857119,0.320762,20890.0,20887.0,0.14965348]
[1673666857382,0.66940095,20891.0,20887.0,0.14965348]
[1673666857774,0.478675,20891.0,20887.0,0.14965348]
[1673666857943,0.478675,20891.0,20887.0,0.14465348]
[1673666858200,0.15088554,20890.0,20887.0,0.13965348]
[1673666858448,0.478641,20893.0,20887.0,0.13965348]
[1673666858961,0.66936695,20893.0,20887.0,0.13965348]
[1673666859218,0.00938195,20894.0,20886.0,0.55754203]
[1673666859465,0.39044325,20893.0,20887.0,0.478763]
[1673666859780,0.39044325,20893.0,20889.0,0.2]
[1673666860039,0.17051524,20890.0,20887.0,0.478763]
[1673666860300,0.19072595,20889.0,20888.0,0.07814606]
[1673666860562,0.17051524,20890.0,20888.0,0.07814606]
[1673666860823,0.17051524,20890.0,20886.0,0.00019]
[1673666861098,0.51148795,20889.0,20886.0,0.00019]
[1673666861364,0.578672,20888.0,20886.0,0.00019]
[1673666861600,0.520762,20887.0,20885.0,0.11800799]
[1673666861963,0.099929,20886.0,20885.0,0.11800799]
[1673666862223,0.66946895,20888.0,20885.0,0.11800799]
[1673666862483,0.478743,20888.0,20885.0,0.11800799]
[1673666862745,0.478729,20889.0,20886.0,0.18440418]
[1673666863028,0.535804,20888.0,20883.0,0.01169662]
[1673666863279,0.51148795,20887.0,20883.0,0.17015844]
[1673666863537,0.099929,20886.0,20883.0,0.17034844]
[1673666863793,0.320762,20885.0,20883.0,0.17034844]
[1673666864054,0.478767,20887.0,20883.0,0.17034844]
[1673666864340,0.66949295,20887.0,20883.0,0.17034844]
[1673666864611,0.320762,20886.0,20883.0,0.17034844]
[1673666864862,0.66949295,20887.0,20883.0,0.17034844]
[1673666865127,0.478767,20887.0,20883.0,0.17034844]
[1673666865382,0.47867144,20887.0,20883.0,0.17015844]
[1673666865691,0.5050279,20886.0,20883.0,0.17015844]
[1673666865963,0.099929,20885.0,20883.0,0.17015844]
[1673666866217,0.1842659,20886.0,20884.0,0.10975997]
[1673666868791,0.1842659,20886.0,20883.0,0.17984248]
[1673666871075,0.1842659,20886.0,20884.0,0.12796216]
[1673666872544,0.16947876,20888.0,20884.0,0.12796216]
[1673666872793,0.16937828,20888.0,20884.0,0.48050419]
[1673666873298,0.17073835,20892.0,20885.0,0.14301681]
[1673666873560,0.15012075,20890.0,20886.0,0.25659781]
[1673666873821,0.15012075,20890.0,20887.0,0.45658281]
[1673666874072,0.19414144,20892.0,20887.0,0.34301681]
[1673666874323,0.19414144,20892.0,20887.0,0.55754203]
[1673666874601,0.19414144,20892.0,20888.0,0.14301681]
[1673666874904,0.17559299,20887.0,20885.0,0.87420681]
[1673666875155,0.51148795,20886.0,20885.0,0.18000761]
[1673666875415,0.09072595,20886.0,20885.0,0.00019]
[1673666875687,0.320762,20886.0,20885.0,0.00019]
[1673666875948,0.14900565,20886.0,20885.0,0.00019]
[1673666876684,0.14900565,20886.0,20883.0,0.10704846]
[1673666877791,0.3397316,20886.0,20883.0,0.01169662]
[1673666878011,0.66951595,20886.0,20883.0,0.01169662]
[1673666878238,0.320762,20885.0,20883.0,0.01169662]
[1673666878483,0.18204514,20884.0,20883.0,0.01169662]
[1673666878903,0.50280714,20884.0,20883.0,0.01169662]
[1673666880425,0.95349553,20884.0,20883.0,0.01169662]
[1673666881393,1.15349553,20884.0,20883.0,0.01169662]
[1673666881620,0.95349553,20884.0,20883.0,0.01169662]
[1673666881854,0.95320153,20884.0,20883.0,0.01169662]
[1673666882295,0.47436653,20884.0,20883.0,0.01169662]
[1673666882542,0.95320153,20884.0,20883.0,0.01169662]
[1673666882994,0.999303,20884.0,20883.0,0.01169662]
[1673666883934,0.98815796,20884.0,20883.0,0.01169662]
[1673666884383,0.999303,20884.0,20883.0,0.01169662]
[1673666885478,0.799303,20884.0,20883.0,0.01169662]
[1673666885914,0.999303,20884.0,20883.0,0.01169662]
[1673666886133,0.97269364,20884.0,20883.0,0.01169662]
[1673666887453,0.49385864,20884.0,20883.0,0.01169662]
[1673666888606,0.17339064,20884.0,20883.0,0.01169662]
[1673666889569,0.49416864,20884.0,20883.0,0.01169662]
[1673666892470,0.320778,20884.0,20883.0,0.01169662]
[1673666892708,1.56650559,20889.0,20883.0,0.26600935]
[1673666892709,0.67239009,20889.0,20883.0,0.26600935]
[1673666892944,0.16007362,20888.0,20884.0,0.10000001]
[1673666893159,0.14259258,20887.0,20885.0,0.10000001]
[1673666893385,0.14259258,20887.0,20883.0,0.50902615]
[1673666893624,0.14259258,20887.0,20883.0,0.82355138]
[1673666893847,0.17117296,20889.0,20884.0,0.25689781]
[1673666894101,0.17117296,20889.0,20885.0,0.10000001]
[1673666894329,0.63484215,20891.0,20886.0,0.18850914]
[1673666894560,0.19373759,20890.0,20887.0,0.10000001]
[1673666895011,0.19373759,20890.0,20886.0,0.18850914]
[1673666895240,0.19373759,20890.0,20886.0,0.28850915]
[1673666895900,0.19373759,20890.0,20886.0,0.18850914]
[1673666896124,0.0084968,20891.0,20886.0,0.76729615]
[1673666896509,0.38810826,20891.0,20886.0,0.89562042]
[1673666896727,0.38810826,20891.0,20886.0,0.72180382]
[1673666896950,0.19922275,20891.0,20886.0,0.72180382]
[1673666897382,0.39907096,20891.0,20887.0,0.16189395]
[1673666897598,0.20834501,20891.0,20887.0,0.26189396]
[1673666898035,0.19334193,20890.0,20887.0,0.16189395]
[1673666898251,0.38406788,20890.0,20887.0,0.16189395]
[1673666898685,0.19334193,20890.0,20887.0,0.16189395]
[1673666899131,2.0,20888.0,20887.0,0.16189395]
[1673666899581,2.0,20888.0,20887.0,0.64065995]
[1673666900019,2.0,20888.0,20887.0,0.78367676]
[1673666900253,2.0,20888.0,20887.0,0.64065995]
[1673666900713,2.0,20888.0,20887.0,0.64057969]
[1673666901377,2.0,20888.0,20887.0,0.75443869]
[1673666901594,2.0,20888.0,20887.0,0.64057969]
[1673666904426,2.0,20888.0,20887.0,0.89958083]
[1673666904682,2.0,20888.0,20887.0,1.11410605]
[1673666905464,2.0,20888.0,20887.0,0.02770059]
[1673666905981,2.0,20888.0,20887.0,0.17080662]
[1673666906240,2.0,20888.0,20887.0,0.84800831]
[1673666906500,2.0,20888.0,20887.0,1.18366828]
[1673666906765,2.0,20888.0,20887.0,1.15596769]
[1673666907023,2.0,20888.0,20887.0,1.51214058]
[1673666907834,2.0,20888.0,20887.0,1.53507734]
[1673666908097,2.0,20888.0,20887.0,1.17890445]
[1673666908337,2.0,20888.0,20887.0,1.51214058]
[1673666908593,2.0,20888.0,20887.0,1.54068924]
[1673666908858,2.0,20888.0,20887.0,1.18451635]
[1673666909085,2.0,20888.0,20887.0,1.54068924]
[1673666909389,2.0,20888.0,20887.0,1.34068924]
[1673666909652,2.0,20888.0,20887.0,0.62178819]
[1673666910448,2.0,20888.0,20887.0,0.478766]
[1673666910711,2.15659873,20888.0,20886.0,0.41523461]
[1673666910961,2.15659873,20888.0,20884.0,0.95699594]
[1673666911229,0.2,20887.0,20884.0,0.95699594]
[1673666911491,0.19072595,20887.0,20884.0,0.95699594]
[1673666912032,0.19072595,20887.0,20884.0,0.81397375]
[1673666912275,2.0,20888.0,20884.0,0.7884]
[1673666912533,2.17206223,20888.0,20884.0,1.0314222]
[1673666912821,0.19389519,20887.0,20884.0,1.05431592]
[1673666913098,0.19389519,20887.0,20885.0,0.02146591]
[1673666913902,2.0,20888.0,20885.0,0.27067949]
[1673666914186,2.0,20888.0,20886.0,0.14302219]
[1673666915014,2.0,20888.0,20886.0,0.3575231]
[1673666915270,2.0,20888.0,20887.0,0.14302219]
[1673666915531,2.0,20888.0,20886.0,0.3575231]
[1673666915843,2.0,20888.0,20887.0,0.08598162]
[1673666916630,2.0,20888.0,20887.0,0.22900381]
[1673666916886,2.0,20888.0,20887.0,0.08598162]
[1673666917168,2.0,20888.0,20887.0,0.2288015]
[1673666917423,2.0,20888.0,20887.0,0.22865221]
[1673666918219,2.0,20888.0,20887.0,0.44315312]
[1673666918472,2.0,20888.0,20887.0,0.77733262]
[1673666918727,2.0,20888.0,20887.0,0.70576287]
[1673666919265,2.0,20888.0,20887.0,0.16846118]
[1673666919524,2.0,20888.0,20887.0,0.08563002]
[1673666921292,2.0,20888.0,20887.0,0.02553002]
[1673666921608,2.18989517,20888.0,20886.0,0.14293116]
[1673666921863,2.18989517,20888.0,20885.0,0.38306143]
[1673666922120,2.18989517,20888.0,20886.0,0.02186458]
[1673666922410,2.18989517,20888.0,20886.0,0.37929665]
[1673666922657,2.0,20888.0,20887.0,0.08321136]
[1673666922908,2.0,20888.0,20887.0,0.22614252]
[1673666923170,2.0,20888.0,20887.0,0.44064343]
[1673666923418,2.0,20888.0,20887.0,0.29771227]
[1673666923717,2.0,20888.0,20887.0,0.44065617]
[1673666923992,2.0,20888.0,20886.0,0.16350538]
[1673666924237,2.0,20888.0,20886.0,0.37800629]
[1673666924503,2.0,20888.0,20886.0,0.16350538]
[1673666924757,2.0,20888.0,20885.0,0.35744481]
[1673666925036,2.3536219,20888.0,20885.0,0.35744481]
[1673666925310,2.3536219,20888.0,20885.0,0.1429439]
[1673666925564,2.17026907,20888.0,20884.0,0.35744481]
[1673666925820,2.33392355,20888.0,20884.0,0.35744481]
[1673666926082,0.14349404,20887.0,20885.0,0.1429439]
[1673666926353,0.14349404,20887.0,20885.0,0.378713]
[1673666926608,2.0,20888.0,20886.0,0.1429439]
[1673666927108,0.19768358,20887.0,20885.0,0.378713]
[1673666927362,0.38840953,20887.0,20885.0,0.1429439]
[1673666927685,0.33969065,20887.0,20883.0,0.15464052]
[1673666927908,0.19072595,20886.0,20883.0,0.15464052]
[1673666928164,0.2,20885.0,20883.0,0.36914143]
[1673666928431,0.19072595,20886.0,20883.0,0.36914143]
[1673666928685,0.15545499,20885.0,20883.0,0.36914143]
[1673666929249,0.15775308,20887.0,20884.0,0.16960387]
[1673666929758,0.14392152,20886.0,20884.0,0.16960387]
[1673666930024,0.14392152,20886.0,20884.0,0.35744481]
[1673666930313,0.14392152,20886.0,20884.0,0.38613554]
[1673666931087,2.0,20888.0,20884.0,0.38613554]
[1673666931344,2.0,20888.0,20886.0,0.1429439]
[1673666931745,2.0,20888.0,20886.0,0.7201456]
[1673666931747,0.70210173,20893.0,20887.0,0.7201456]
[1673666931748,0.00868519,20893.0,20887.0,0.7201456]
[1673666931963,0.20740584,20893.0,20891.0,0.04999]
[1673666932211,0.15729813,20893.0,20892.0,0.62184295]
[1673666932437,0.1716562,20892.0,20891.0,0.98662538]
[1673666932659,0.1716562,20892.0,20891.0,0.88662537]
[1673666932897,0.1716562,20892.0,20891.0,0.67183895]
[1673666933105,0.1716562,20892.0,20891.0,0.88662537]
[1673666933895,0.00868519,20893.0,20891.0,0.88662537]
[1673666934153,0.00868519,20893.0,20891.0,0.91318226]
[1673666934403,0.00868519,20893.0,20892.0,0.14319095]
[1673666934671,0.00868519,20893.0,20892.0,0.35797737]
[1673666935190,0.00868519,20893.0,20892.0,0.21478642]
[1673666935718,0.00868519,20893.0,20892.0,0.3579664]
[1673666936007,0.40548327,20893.0,20892.0,0.50116831]
[1673666936270,0.1485142,20892.0,20891.0,0.04999]
[1673666936542,0.1485142,20892.0,20891.0,0.193171]
[1673666937069,0.1485142,20892.0,20891.0,0.04999]
[1673666937321,0.1485142,20892.0,20891.0,0.193171]
[1673666937580,0.1485142,20892.0,20890.0,0.37401591]
[1673666938097,0.1485142,20892.0,20890.0,0.35091142]
[1673666938356,0.1485142,20892.0,20890.0,0.143181]
[1673666938882,0.00868519,20893.0,20891.0,0.02116088]
[1673666939161,0.00868519,20893.0,20892.0,0.14316848]
[1673666939468,0.00868519,20893.0,20892.0,0.34316848]
[1673666939710,0.00868519,20893.0,20892.0,0.478652]
[1673666940232,0.00868519,20893.0,20892.0,0.76503389]
[1673666940493,0.00868519,20893.0,20892.0,0.95585369]
[1673666941029,0.00868519,20893.0,20892.0,1.15585369]
[1673666941542,0.00868519,20893.0,20892.0,1.58326115]
[1673666941811,0.00868519,20893.0,20892.0,1.15585369]
[1673666942113,0.00868519,20893.0,20892.0,1.17736281]
[1673666942363,0.00868519,20893.0,20892.0,1.15585369]
[1673666943147,0.00868519,20893.0,20892.0,1.17740121]
[1673666943619,0.00868519,20893.0,20892.0,1.33504342]
[1673666943621,0.00868519,20893.0,20892.0,0.85784173]
[1673666943874,0.00868519,20893.0,20892.0,0.30767409]
[1673666944129,0.00868519,20893.0,20892.0,0.16461538]
[1673666945677,0.00868519,20893.0,20892.0,0.14306786]
[1673666947561,0.49254532,20893.0,20892.0,0.14306786]
[1673666947822,0.49254532,20893.0,20891.0,0.21456167]
[1673666947823,0.82259137,20893.0,20891.0,0.14306786]
[1673666948088,0.00868519,20893.0,20891.0,0.31456168]
[1673666948370,0.00868519,20893.0,20892.0,0.24325674]
[1673666948924,0.00868519,20893.0,20892.0,0.92045843]
[1673666949194,0.00868519,20893.0,20892.0,1.05720914]
[1673666949698,0.00868519,20893.0,20892.0,1.99125501]
[1673666950761,0.00868519,20893.0,20892.0,1.56384755]
[1673666951035,0.00868519,20893.0,20892.0,1.60327045]
[1673666951510,0.00868519,20893.0,20892.0,2.21501688]
[1673666951544,0.00868519,20893.0,20892.0,2.49993997]
[1673666952348,0.00868483,20895.0,20893.0,0.2]
[1673666952610,8.483e-05,20895.0,20894.0,2.32101355]
[1673666952868,0.00868519,20898.0,20895.0,0.2]
[1673666953128,0.00868519,20898.0,20897.0,0.35698144]
[1673666953382,0.00868519,20898.0,20897.0,1.24217699]
[1673666953644,0.00868519,20898.0,20897.0,1.92071399]
[1673666953893,0.00868519,20898.0,20897.0,2.20604998]
[1673666954158,0.00868519,20898.0,20897.0,1.92071399]
[1673666954417,0.00868519,20898.0,20897.0,1.56373255]
[1673666954681,0.00868519,20898.0,20897.0,1.92036327]
[1673666954944,0.00368519,20898.0,20897.0,1.92036327]
[1673666955280,0.00368519,20898.0,20897.0,2.2056733]
[1673666956259,0.00368519,20898.0,20897.0,1.92036327]
[1673666956788,0.00368519,20898.0,20897.0,1.36373255]
[1673666957311,0.00368519,20898.0,20897.0,0.95573869]
[1673666957585,0.00368519,20898.0,20897.0,1.33852665]
[1673666957841,0.00368519,20898.0,20897.0,1.33640409]
[1673666958109,0.19441114,20898.0,20897.0,0.0242984]
[1673666958373,0.00368519,20898.0,20897.0,0.0242984]
[1673666958919,0.00368519,20898.0,20897.0,0.1667765]
[1673666959270,0.00368519,20898.0,20897.0,0.0242984]
[1673666960493,0.00368519,20898.0,20896.0,0.17029988]
[1673666960494,0.17041292,20898.0,20896.0,0.17029988]
[1673666960753,0.17041292,20898.0,20895.0,0.1688931]
[1673666961289,0.19072595,20897.0,20895.0,0.1688931]
[1673666961563,0.66926395,20897.0,20894.0,0.1424781]
[1673666961883,0.66926395,20897.0,20893.0,0.16914101]
[1673666962336,0.478538,20897.0,20893.0,0.16914101]
[1673666962596,0.19707584,20898.0,20896.0,0.02741409]
[1673666962857,0.00368519,20898.0,20896.0,0.1274141]
[1673666963131,0.00368519,20898.0,20896.0,0.02741409]
[1673666964401,0.00368519,20898.0,20896.0,0.64709388]
[1673666964924,0.00368519,20898.0,20897.0,0.1424781]
[1673666965445,0.00368519,20898.0,20897.0,0.93338931]
[1673666965734,0.00368519,20898.0,20897.0,1.51210569]
[1673666965986,0.00368519,20898.0,20897.0,1.56373255]
[1673666966740,0.00368519,20898.0,20897.0,2.75751027]
[1673666967769,0.00368519,20898.0,20897.0,2.32913255]
[1673666968029,0.00368519,20898.0,20897.0,2.96166065]
[1673666969347,0.00368519,20898.0,20897.0,2.98131327]
[1673666969867,0.00368519,20898.0,20897.0,2.34878517]
[1673666970937,0.00368519,20898.0,20897.0,2.32913255]
[1673666971431,0.00368519,20898.0,20897.0,2.44413255]
[1673666971694,0.00868519,20899.0,20898.0,0.20109927]
[1673666971957,0.00868519,20899.0,20898.0,1.56480882]
[1673666972505,0.00868519,20899.0,20898.0,1.788533]
[1673666973566,0.00868519,20899.0,20898.0,1.56480882]
[1673666974317,0.00868519,20899.0,20898.0,1.36480882]
[1673666974542,0.00868519,20899.0,20898.0,1.58838295]
[1673666975349,0.00368519,20899.0,20898.0,0.95681496]
[1673666975613,0.00368519,20899.0,20898.0,1.15681496]
[1673666975869,0.00368519,20899.0,20898.0,1.78838295]
[1673666976130,0.00368519,20899.0,20898.0,1.15681496]
[1673666976385,0.00361866,20899.0,20898.0,1.56480882]
[1673666976908,0.00361866,20899.0,20898.0,1.15681496]
[1673666979014,0.00361866,20899.0,20898.0,1.18272315]
[1673666979278,0.00361866,20899.0,20898.0,0.50420915]
[1673666980084,0.95284257,20899.0,20898.0,0.00109927]
[1673666980354,0.76211662,20899.0,20898.0,0.00109927]
[1673666980618,0.95284257,20899.0,20898.0,0.50065064]
[1673666980874,1.08288862,20899.0,20898.0,0.35792628]
[1673666981134,0.76211662,20899.0,20898.0,0.35792628]
[1673666981353,1.29517646,20899.0,20898.0,0.14383075]
[1673666981659,1.09517646,20899.0,20898.0,0.14383075]
[1673666982173,1.09517646,20899.0,20898.0,0.35792628]
[1673666982435,0.77440446,20899.0,20898.0,0.35792628]
[1673666982976,1.09517646,20899.0,20898.0,0.14383075]
[1673666983241,1.21875731,20899.0,20898.0,0.14383075]
[1673666983507,1.02810166,20899.0,20898.0,0.14383075]
[1673666983769,1.02810166,20899.0,20898.0,0.00109927]
[1673666984027,1.07597387,20899.0,20898.0,0.14383075]
[1673666984314,0.92810166,20899.0,20898.0,0.00109927]
[1673666984562,1.0462616,20899.0,20898.0,0.00109927]
[1673666985078,0.86800166,20899.0,20898.0,0.00109927]
[1673666985342,1.06463509,20899.0,20898.0,0.00109927]
[1673666985593,0.86800166,20899.0,20898.0,0.00109927]
[1673666985854,1.46800166,20899.0,20898.0,0.00109927]
[1673666986399,1.66800166,20899.0,20898.0,0.00109927]
[1673666986701,1.84999729,20899.0,20898.0,0.00109927]
[1673666986903,1.66800166,20899.0,20898.0,0.00109927]
[1673666988250,1.06800166,20899.0,20898.0,0.00109927]
[1673666988477,1.66800166,20899.0,20898.0,0.00109927]
[1673666989297,1.06800166,20899.0,20898.0,0.00109927]
[1673666990068,1.01257947,20899.0,20898.0,0.00109927]
[1673666990840,1.21257947,20899.0,20898.0,0.00109927]
[1673666991099,1.06800166,20899.0,20898.0,0.00109927]
[1673666992662,0.86800166,20899.0,20898.0,0.00109927]
[1673666993214,1.06800166,20899.0,20898.0,0.00109927]
[1673666994465,1.66800166,20899.0,20898.0,0.00109927]
[1673666996869,1.66800166,20899.0,20898.0,2.7e-07]
[1673666997147,1.66800166,20899.0,20894.0,0.00019]
[1673666997392,0.05706,20895.0,20894.0,0.00019]
[1673666997657,0.05706,20895.0,20890.0,0.00997671]
[1673666997658,0.2,20894.0,20890.0,0.00997671]
[1673666997915,1.84010795,20893.0,20890.0,0.03443102]
[1673666998172,0.320772,20892.0,20890.0,0.03443102]
[1673666998549,1.649508,20891.0,20890.0,0.03443102]
[1673666998698,1.649508,20891.0,20890.0,0.00997671]
[1673666998952,1.63964094,20891.0,20890.0,0.00997671]
[1673666999203,1.436025,20891.0,20890.0,0.00997671]
[1673666999987,1.436025,20891.0,20890.0,0.0324089]
[1673667000504,1.436025,20891.0,20890.0,0.00997671]
[1673667001529,1.62529638,20891.0,20890.0,0.00997671]
[1673667001790,1.755908,20891.0,20890.0,0.00997671]
[1673667002327,1.89894702,20891.0,20890.0,0.00997671]
[1673667006513,0.956463,20891.0,20890.0,0.10997672]
[1673667006778,0.956463,20891.0,20890.0,0.04545815]
[1673667007031,0.477788,20891.0,20890.0,0.04545815]
[1673667007849,0.477788,20891.0,20890.0,0.03559715]
[1673667008363,0.62637884,20891.0,20890.0,0.00997671]
[1673667012075,1.16110245,20891.0,20890.0,0.00997671]
[1673667012883,0.998558,20891.0,20890.0,0.00997671]
[1673667013943,0.798558,20891.0,20890.0,0.00997671]
[1673667014453,0.97167042,20891.0,20890.0,0.00997671]
[1673667014975,0.65090042,20891.0,20890.0,0.00997671]
[1673667015475,0.65090042,20891.0,20890.0,0.00957671]
[1673667017771,0.65090042,20891.0,20890.0,0.15230819]
[1673667018043,0.65090042,20891.0,20890.0,0.16216919]
[1673667018281,0.477788,20891.0,20890.0,0.16216919]
[1673667018537,0.478642,20893.0,20890.0,0.47624402]
[1673667018797,0.478642,20893.0,20892.0,0.35694911]
[1673667019383,0.478642,20893.0,20892.0,0.50958276]
[1673667019891,0.478642,20893.0,20892.0,0.36680311]
[1673667020771,0.478606,20894.0,20892.0,0.39161994]
[1673667021021,0.4786,20895.0,20893.0,0.55694911]
[1673667021275,0.4786,20895.0,20894.0,0.51009748]
[1673667021532,0.4786,20895.0,20894.0,0.29570613]
[1673667021775,0.4786,20895.0,20894.0,0.36680011]
[1673667022264,0.478575,20896.0,20894.0,0.36680011]
[1673667022522,0.478575,20896.0,20895.0,0.28591584]
[1673667022787,0.478538,20897.0,20895.0,0.009845]
[1673667023046,0.478538,20897.0,20896.0,0.35698356]
[1673667023301,0.478538,20897.0,20896.0,0.39482078]
[1673667023819,0.478538,20897.0,20896.0,0.03783722]
[1673667024640,0.48775893,20898.0,20896.0,0.03783722]
[1673667024641,0.00923293,20898.0,20896.0,0.51503891]
[1673667024894,0.00923293,20898.0,20896.0,0.50519691]
[1673667025147,0.00923293,20898.0,20897.0,0.009838]
[1673667025403,0.00923293,20898.0,20897.0,0.48703969]
[1673667025663,0.00923293,20898.0,20897.0,0.91518574]
[1673667025957,0.00923293,20898.0,20897.0,1.14229681]
[1673667026214,0.00923293,20898.0,20897.0,1.11518574]
[1673667026983,0.00923293,20898.0,20897.0,0.03542461]
[1673667028831,0.00923293,20898.0,20897.0,0.5126263]
[1673667029089,0.00923293,20898.0,20897.0,0.48703969]
[1673667029351,0.00923293,20898.0,20897.0,0.91518574]